fUSD/lending_fUSD_20240623
["ID","MTS","AMOUNT","RATE_DAILY","PERIOD"]
[330194877,1719103854866,-151.0,0.00020996,2]
[330194878,1719103854876,-241.11111,0.00020996,2]
[330194879,1719103854885,-211.337278,0.00020996,2]
[330194880,1719103854895,-151.0,0.00020996,2]
[330194881,1719103854905,-232.0,0.00020996,2]
[330194882,1719103854915,-151.0,0.00020996,2]
[330194883,1719103854924,-306.589048,0.00020996,2]
[330194884,1719103854936,-306.589048,0.00020996,2]
[330194885,1719103854946,-151.0,0.00020998,2]
[330194886,1719103854955,-151.0,0.00020998,2]
[330194887,1719103854965,-612.3826506,0.00020999,2]
[330194888,1719103854974,-10245.8559304,0.00020999,2]
[330194889,1719103854984,-151.0,0.00020999,2]
[330194890,1719103854993,-151.0,0.00020999,2]
[330194891,1719103855002,-151.0,0.00020999,2]
[330194892,1719103855012,-970.30972548,0.00020999,2]
[330194893,1719103855021,-151.0,0.00020999,2]
[330194894,1719103855031,-306.589048,0.00020999,2]
[330194895,1719103855040,-306.58904,0.00020999,2]
[330194896,1719103855050,-84692.7526139,0.00020999,2]
[330194897,1719103855059,-6716720.1779949,0.00021,4]
[330194898,1719103855380,-340825.26018265,0.00021,4]
[330194899,1719103855402,-36959.24105103,0.00021,4]
[330194900,1719103855414,-442.16535501,0.00021,4]
[330194901,1719103855426,-362.95158291,0.00021,4]
[330194902,1719103855452,-357.0,0.00021,4]
[330194903,1719103855463,-685.80439866,0.00021,4]
[330194904,1719103855479,-969.48009,0.00021,4]
[330194905,1719103855492,-658.090015,0.00021,4]
[330194906,1719103855504,-3151.93605474,0.00021,4]
[330194907,1719103855515,-973.28585958,0.00021,4]
[330194908,1719103855528,-1053.15521394,0.00021,4]
[330194909,1719103855539,-1079.81620064,0.00021,4]
[330194910,1719103855551,-316.83347615,0.00021,4]
[330194911,1719103855563,-379.9422459,0.00021,4]
[330194912,1719103855859,-151.0,0.0001503,2]
[330194913,1719103855869,-509.97006902,0.00021,4]
[330194914,1719103855883,-1750.0,0.00021,4]
[330194915,1719103856359,-233.948514,0.0001503,2]
[330194916,1719103856369,-151.0,0.00015473,2]
[330194917,1719103856379,-233.948514,0.00015473,2]
[330194918,1719103856389,-151.0,0.00015991,2]
[330194919,1719103856398,-233.948514,0.00015991,2]
[330194920,1719103856408,-151.0,0.00016441,2]
[330194921,1719103856417,-151.0,0.00017082,2]
[330194922,1719103856426,-318.229458,0.00020055,2]
[330194924,1719104213398,183.43,0.00026346,120]
[330194925,1719104346333,8000.0,0.00027,120]
[330194926,1719104491839,1298.83,0.00026,60]
[330194927,1719104666445,873.0,0.000255,40]
[330194929,1719104952840,-169.81405891,0.00015,2]
[330194930,1719104952867,-150.0,0.00015,2]
[330194948,1719105032356,-715.51808048,0.00015113,2]
[330194949,1719105032367,-158.26078951,0.00015547,2]
[330194950,1719105032378,-161.96,0.00016712,2]
[330194951,1719105032388,-776.43,0.00016728,2]
[330194952,1719105032399,-1339.90125336,0.00017045,2]
[330194953,1719105032409,-183.43,0.00017564,2]
[330194954,1719105032419,-150.0,0.00017807,2]
[330194955,1719105032429,-150.0,0.00017807,2]
[330194956,1719105032439,-499.99,0.00017912,2]
[330194957,1719105032451,-191.70217133,0.00018182,2]
[330194958,1719105032461,-19599.10543093,0.00018182,2]
[330194959,1719105032481,-943.90887292,0.00018182,2]
[330194960,1719105032496,-278.35,0.00018255,2]
[330194961,1719105032509,-150.0,0.00018268,2]
[330194962,1719105032523,-2974.59,0.00018373,2]
[330194963,1719105032537,-1000.0,0.00018442,2]
[330194964,1719105032552,-168.5,0.00018466,2]
[330194965,1719105032565,-200.0,0.00018599,2]
[330194966,1719105032578,-250.0,0.00018646,2]
[330194967,1719105032587,-179.63,0.00018762,2]
[330194968,1719105032597,-390.28,0.00018853,2]
[330194969,1719105032607,-390.28,0.00018904,2]
[330194970,1719105032616,-390.28,0.00018956,2]
[330194971,1719105032625,-776.43,0.00018992,2]
[330194972,1719105032635,-390.28,0.00019008,2]
[330194973,1719105032644,-390.28,0.0001906,2]
[330194974,1719105032654,-518.14,0.00019096,2]
[330194975,1719105032664,-851.56,0.00019096,2]
[330194976,1719105033065,-831.13,0.00019096,2]
[330194977,1719105033094,-390.28,0.00019111,2]
[330194978,1719105033111,-390.28,0.00019163,2]
[330194979,1719105033121,-250.0,0.00019178,2]
[330194980,1719105033131,-10567.909,0.00019198,2]
[330194981,1719105033140,-8021.75638744,0.00019214,2]
[330194982,1719105033149,-390.28,0.00019215,2]
[330194983,1719105033158,-390.28,0.00019266,2]
[330194984,1719105033167,-390.28,0.00019318,2]
[330194985,1719105033177,-390.28,0.0001937,2]
[330194986,1719105033186,-175.11718022,0.0001937,2]
[330194987,1719105033204,-339.04706187,0.0001937,2]
[330194988,1719105033215,-483.38441344,0.0001937,2]
[330194989,1719105033228,-56.97134447,0.0001937,2]
[330194990,1719105033240,-300.0,0.0001937,2]
[330194991,1719105033249,-328.96,0.0001937,2]
[330194992,1719105033259,-150.0,0.0001937,2]
[330194993,1719105033268,-316.21,0.0001937,2]
[330194994,1719105033278,-300.0,0.0001937,2]
[330194995,1719105033287,-300.0,0.0001937,2]
[330194996,1719105033296,-846.7,0.0001937,2]
[330194997,1719105033305,-708.04,0.0001937,2]
[330194998,1719105033314,-422.33,0.0001937,2]
[330194999,1719105033323,-525.46,0.0001937,2]
[330195000,1719105033332,-157.23,0.0001937,2]
[330195001,1719105033342,-123.53061533,0.0001937,2]
[330195002,1719105033358,-176.46938467,0.0001937,2]
[330195003,1719105033367,-706.92,0.0001937,2]
[330195004,1719105033376,-328.44,0.0001937,2]
[330195005,1719105033386,-305.04,0.0001937,2]
[330195006,1719105033395,-354.23,0.0001937,2]
[330195007,1719105033404,-300.0,0.0001937,2]
[330195008,1719105033417,-158.37,0.0001937,2]
[330195009,1719105033426,-300.0,0.0001937,2]
[330195010,1719105033435,-328.96,0.0001937,2]
[330195011,1719105033445,-423.6,0.0001937,2]
[330195012,1719105033455,-423.6,0.0001937,2]
[330195013,1719105033464,-354.23,0.0001937,2]
[330195014,1719105033474,-352.76,0.0001937,2]
[330195015,1719105033483,-423.6,0.0001937,2]
[330195016,1719105033492,-290.0,0.0001937,2]
[330195017,1719105033501,-150.0,0.000194,2]
[330195018,1719105033511,-390.28,0.00019421,2]
[330195019,1719105033520,-390.28,0.00019473,2]
[330195020,1719105033529,-390.28,0.00019525,2]
[330195021,1719105033539,-390.28,0.00019577,2]
[330195022,1719105033548,-390.28,0.00019628,2]
[330195023,1719105033558,-390.28,0.0001968,2]
[330195024,1719105033567,-390.28,0.00019732,2]
[330195025,1719105033576,-390.28,0.00019783,2]
[330195026,1719105033585,-390.28,0.00019835,2]
[330195027,1719105033595,-261.0,0.00019835,2]
[330195028,1719105033604,-150.0,0.00019918,2]
[330195029,1719105033614,-150.0,0.00019918,2]
[330195030,1719105033623,-316.12,0.00019918,2]
[330195031,1719105033636,-250.0,0.00019948,2]
[330195032,1719105033645,-10000.0,0.0002,2]
[330195033,1719105033654,-200.0,0.000201,7]
[330195034,1719105033667,-261.0,0.00020121,2]
[330195035,1719105033678,-1102.25,0.00020145,2]
[330195036,1719105033687,-305.44,0.00020192,2]
[330195037,1719105033696,-500.0,0.000202,7]
[330195038,1719105033705,-700.0,0.000203,7]
[330195039,1719105033715,-1000.0,0.000204,7]
[330195040,1719105033725,-261.0,0.00020408,2]
[330195041,1719105033734,-350.0,0.00020496,2]
[330195042,1719105033744,-328.4026194,0.00020499,2]
[330195043,1719105033754,-1300.0,0.000205,7]
[330195044,1719105033764,-500.0,0.00020579,2]
[330195045,1719105033773,-254.17677731,0.0002058,2]
[330195046,1719105033783,-200.0,0.000206,7]
[330195047,1719105033793,-1462.0,0.000206,2]
[330195048,1719105033802,-261.0,0.00020695,2]
[330195049,1719105033812,-200.0,0.000207,7]
[330195050,1719105033821,-157.79353105,0.00020732,2]
[330195051,1719105033831,-1000.0,0.00020748,2]
[330195052,1719105033840,-157.79353101,0.0002076,2]
[330195053,1719105033849,-157.79353101,0.00020788,2]
[330195054,1719105033858,-200.0,0.000208,7]
[330195055,1719105033869,-961.44748654,0.000208,2]
[330195056,1719105033884,-71849.11325916,0.000208,2]
[330195057,1719105033897,-6393.22799159,0.000208,2]
[330195058,1719105033908,-4824.68606741,0.000208,2]
[330195059,1719105033926,-5999.8097016,0.000208,2]
[330195060,1719105033937,-1694.2,0.000208,2]
[330195061,1719105033949,-939.2,0.000208,2]
[330195062,1719105033960,-2161.85386114,0.000208,2]
[330195063,1719105033972,-2614.51207228,0.000208,2]
[330195064,1719105033984,-1956.37593354,0.000208,2]
[330195065,1719105033995,-4878.68678925,0.000208,2]
[330195066,1719105034006,-5439.96,0.000208,2]
[330195072,1719105038366,-715.51808048,0.00015051,2]
[330195073,1719105038376,-328.4026194,0.00020495,2]
[330195074,1719105038386,-157.79353101,0.00020816,2]
[330195075,1719105038396,-825.281185,0.00020822,2]
[330195076,1719105038405,-79.15615311,0.00020832,2]
[330195077,1719105038544,-420.84384689,0.00020832,2]
[330195078,1719105038554,-200.0,0.00020832,2]
[330195079,1719105038563,-132.00203885,0.00020844,2]
[330195080,1719105038575,-25.79149216,0.00020844,2]
[330195081,1719105038585,-157.79353101,0.00020872,2]
[330195082,1719105038594,-1000.0,0.00020899,2]
[330195083,1719105038604,-132.36193078,0.000209,2]
[330195084,1719105038615,-472.40159129,0.000209,2]
[330195085,1719105038630,-395.23647793,0.000209,2]
[330195086,1719105038640,-16.47352181,0.000209,2]
[330195088,1719105040673,-729.92680661,0.000209,2]
[330195089,1719105040913,-9253.59967158,0.000209,2]
[330195090,1719105040925,-4726.7268,0.000209,2]
[330195091,1719105040935,-200.0,0.000209,7]
[330195092,1719105040944,-157.79353101,0.000209,2]
[330195093,1719105040954,-261.0,0.00020982,2]
[330195094,1719105040963,-970.30972548,0.00020999,2]
[330195095,1719105040973,-1000.0,0.00020999,2]
[330195096,1719105040983,-7622.9924541,0.00020999,2]
[330195097,1719105040992,-2866.7423,0.00020999,2]
[330195098,1719105041002,-62088.54677378,0.00020999,2]
[330195102,1719105043426,-2500.0,0.00020899,2]
[330195103,1719105043435,-3059.66655997,0.00020998,2]
[330195104,1719105043444,-1997.53356694,0.00020999,2]
[330195105,1719105043656,-0.7013789,0.00020999,2]
[330195106,1719105043922,-4452.09868669,0.00020999,2]
[330195107,1719105043934,-13257.37134962,0.00020999,2]
[330195110,1719105046492,-1872.82806,0.00020999,2]
[330195111,1719105046819,-1050.24683318,0.00020999,2]
[330195152,1719106232051,-161.96,0.00016712,2]
[330195153,1719106232061,-651.0,0.00017286,2]
[330195154,1719106232070,-734.84,0.00017286,2]
[330195155,1719106232080,-5951.21025656,0.000176,2]
[330195156,1719106232091,-72271.87423148,0.000176,2]
[330195157,1719106232104,-1661.1859856,0.000176,2]
[330195158,1719106232116,-2614.77220606,0.000176,2]
[330195159,1719106232128,-5837.96354366,0.000176,2]
[330195160,1719106232139,-4412.16110838,0.000176,2]
[330195161,1719106232151,-11253.40175798,0.000176,2]
[330195162,1719106232164,-854.8607206,0.000176,2]
[330195163,1719106232176,-311.53939985,0.000176,2]
[330195164,1719106232189,-3111.28428518,0.000176,2]
[330195165,1719106232381,-9765.09974378,0.000176,2]
[330195168,1719106232392,-543.83019264,0.000176,2]
[330195313,1719106238459,-6461.3,0.000176,2]
[330195318,1719106238470,-3486.1,0.000176,2]
[330195335,1719106238826,-37276.94171805,0.000176,2]
[330195338,1719106240039,-4650.0,0.000176,2]
[330195340,1719106240442,-1010.6641072,0.000176,2]
[330195341,1719106240460,-432.77331397,0.000176,2]
[330195342,1719106241859,-808.20388114,0.000176,2]
[330195343,1719106241871,-293.99200002,0.000176,2]
[330195407,1719106243269,-49500.84154785,0.000176,2]
[330195409,1719106243279,-150.0,0.00017699,2]
[330195411,1719106243289,-11751.0,0.000179,3]
[330195413,1719106243299,-4398.58,0.00018,2]
[330195415,1719106243312,-499.99,0.000182,2]
[330195417,1719106243322,-11751.0,0.000183,5]
[330195419,1719106243332,-184.21573549,0.000184,2]
[330195421,1719106243341,-1339.90125336,0.00018599,2]
[330195423,1719106243351,-3999.77290496,0.0001875,2]
[330195424,1719106243364,-15232.12598949,0.0001875,2]
[330195425,1719106243376,-723.20473564,0.0001875,2]
[330195426,1719106243389,-3944.89636991,0.0001875,2]
[330195427,1719106243399,-500.0,0.00018758,2]
[330195428,1719106243409,-278.35,0.00018794,2]
[330195429,1719106243419,-250.0,0.000189,2]
[330195430,1719106243428,-7348.61014131,0.0001899,2]
[330195431,1719106243438,-250.0,0.00019009,2]
[330195432,1719106243447,-844.15,0.00019145,2]
[330195433,1719106243459,-250.0,0.00019178,2]
[330195434,1719106243468,-697.0,0.000192,3]
[330195435,1719106243477,-1833.0,0.000192,3]
[330195436,1719106243487,-194.94007006,0.00019236,2]
[330195437,1719106243496,-194.94007004,0.00019316,2]
[330195438,1719106243506,-999.99,0.00019335,2]
[330195439,1719106243516,-1000.0,0.00019335,2]
[330195440,1719106243526,-194.94007004,0.00019396,2]
[330195441,1719106243535,-734.84,0.0001955,2]
[330195442,1719106243545,-695.84057007,0.00019698,2]
[330195443,1719106243554,-922.30495292,0.00019798,2]
[330195444,1719106243605,-500.11504708,0.00019798,2]
[330195445,1719106243614,-36.16496605,0.00019798,2]
[330195446,1719106243626,-132.41203395,0.00019798,2]
[330195447,1719106243635,-164.8,0.00019835,2]
[330195448,1719106243645,-695.84057003,0.0001987,2]
[330195449,1719106243654,-4968.31826232,0.0002,2]
[330195450,1719106243665,-547.59336367,0.0002,2]
[330195451,1719106243677,-3030.49837401,0.0002,2]
[330195452,1719106243687,-695.84057003,0.00020041,2]
[330195453,1719106243696,-164.8,0.00020121,2]
[330195454,1719106243708,-354.23,0.00020192,2]
[330195455,1719106243718,-329.06,0.00020192,2]
[330195456,1719106243728,-300.0,0.00020192,2]
[330195457,1719106243738,-354.23,0.00020192,2]
[330195458,1719106243748,-353.96,0.00020192,2]
[330195459,1719106243761,-695.84057003,0.00020213,2]
[330195460,1719106243771,-695.84057003,0.00020385,2]
[330195461,1719106243781,-164.8,0.00020408,2]
[330195462,1719106243791,-695.84057003,0.00020557,2]
[330195463,1719106243800,-164.8,0.00020695,2]
[330195464,1719106243810,-343.2594,0.000207,2]
[330195465,1719106243820,-695.84057003,0.00020728,2]
[330195466,1719106243829,-155.0,0.00020799,2]
[330195467,1719106243839,-690.00328514,0.00020812,2]
[330195468,1719106243849,-200.0,0.00020832,2]
[330195469,1719106243858,-338.50230874,0.00020895,2]
[330195470,1719106243867,-857.93328719,0.000209,2]
[330195471,1719106243878,-695.84057003,0.000209,2]
[330195472,1719106243888,-177.82315197,0.000209,2]
[330195473,1719106243898,-5467.83828743,0.00020902,2]
[330195474,1719106243908,-174.0,0.00020904,3]
[330195475,1719106243918,-164.8,0.00020982,2]
[330195476,1719106243927,-216.60694485,0.00020994,3]
[330195477,1719106243937,-382.54579546,0.00020994,2]
[330195478,1719106243986,-47.93188369,0.00020994,2]
[330195479,1719106243995,-353.40659901,0.00020995,2]
[330195480,1719106244006,-302.23,0.00020995,2]
[330195481,1719106244018,-300.1,0.00020995,2]
[330195482,1719106244029,-301.132,0.00020995,2]
[330195483,1719106244040,-274.264,0.00020995,2]
[330195484,1719106244053,-309.865,0.00020995,2]
[330195486,1719106246101,-584.82021014,0.0002081,2]
[330195497,1719106424253,319.81405891,0.00014,2]
[330195498,1719106451000,4082.79542411,0.00012,2]
[330195499,1719106451025,2517.88292199,0.00012,2]
[330195500,1719106541724,1626.29214134,0.00022,30]
[330195505,1719106987478,-179.61027696,0.00013834,2]
[330195506,1719107014809,2854.62233973,0.00013834,2]
[330195507,1719107125791,1000.0,0.00025,30]
[330195508,1719107310677,-155.42496744,0.000137,2]
[330195509,1719107310704,-179.61027696,0.00013899,2]
[330195510,1719107310732,-2867.05615375,0.000139,2]
[330195511,1719107310760,-161.56920515,0.000139,2]
[330195512,1719107310786,-190.51565573,0.0001399,2]
[330195513,1719107310814,-150.0,0.00013999,2]
[330195514,1719107310833,-155.42496744,0.00014,2]
[330195515,1719107310845,-179.61027696,0.00014,2]
[330195516,1719107310875,-2867.05615375,0.00014,2]
[330195517,1719107310886,-161.56920515,0.00014,2]
[330195518,1719107310897,-190.51565573,0.00014,2]
[330195519,1719107310913,-150.0,0.00014,2]
[330195520,1719107310924,-192591.64748194,0.00014,2]
[330195521,1719107431927,-161.2597621,0.000139,2]
[330195523,1719107431938,-161.25976206,0.00013964,2]
[330195525,1719107431948,-224.01663678,0.00013999,2]
[330195529,1719107431961,-75.98336322,0.00013999,2]
[330195533,1719107431970,-2123.21328112,0.00014,2]
[330195535,1719107431983,-1317.06365256,0.00014,2]
[330195537,1719107431995,-382.31751455,0.00014,2]
[330195543,1719107432172,-935.06838948,0.00014,2]
[330195544,1719107432183,-562.4996314,0.00014,2]
[330195545,1719107432194,-2923.10063545,0.00014,2]
[330195546,1719107432207,-35030.68584242,0.00014,2]
[330195547,1719107432218,-88293.44926697,0.00014,2]
[330195548,1719107432230,-5611.57327231,0.00014,2]
[330195549,1719107432242,-1120.97999995,0.00014,2]
[330195550,1719107432254,-1765.98400049,0.00014,2]
[330195551,1719107432265,-597.59958667,0.00014,2]
[330195552,1719107432277,-806.77598637,0.00014,2]
[330195553,1719107432289,-460.22700517,0.00014,2]
[330195554,1719107432300,-455.94522447,0.00014,2]
[330195555,1719107432311,-7510.18241207,0.00014,2]
[330195556,1719107432322,-408.75323981,0.00014,2]
[330195557,1719107432333,-2000.0,0.00014,2]
[330195558,1719107432414,-664.57727663,0.00014,2]
[330195559,1719107432426,-2123.26335576,0.00014,2]
[330195561,1719107438525,-785.92464769,0.00014,2]
[330195563,1719107438538,-782.62207443,0.00014,2]
[330195564,1719107438549,-2300.72636637,0.00014,2]
[330195565,1719107438832,-5808.32989986,0.00014,2]
[330195566,1719107438844,-2697.19232896,0.00014,2]
[330195569,1719107440074,-3604.54927796,0.00014,2]
[330195572,1719107440616,-1197.8095201,0.00014,2]
[330195573,1719107442212,-797.24136144,0.00014,2]
[330195574,1719107442224,-495.55389865,0.00014,2]
[330195575,1719107442235,-317.04913614,0.00014,2]
[330195580,1719107443120,-513.18500005,0.00014,2]
[330195582,1719107443131,-465.66500004,0.00014,2]
[330195583,1719107443358,-266852.98977224,0.00014,2]
[330195584,1719107443367,-161.25976206,0.00014028,2]
[330195585,1719107443377,-161.25976206,0.00014093,2]
[330195586,1719107443386,-161.25976206,0.00014157,2]
[330195587,1719107443395,-161.25976206,0.00014221,2]
[330195588,1719107443404,-161.25976206,0.00014285,2]
[330195589,1719107443414,-161.25976206,0.0001435,2]
[330195590,1719107443423,-161.25976206,0.00014414,2]
[330195591,1719107443432,-161.25976206,0.00014478,2]
[330195592,1719107443441,-2867.05615373,0.00014678,2]
[330195593,1719107443451,-9817.37,0.00015337,2]
[330195594,1719107443460,-420.0,0.00015337,2]
[330195595,1719107443470,-150.0,0.0001537,2]
[330195596,1719107443479,-15694.05215844,0.000154,2]
[330195597,1719107443488,-198.14,0.000154,2]
[330195598,1719107443498,-2867.05615373,0.00015456,2]
[330195599,1719107443507,-1373.7220667,0.00015897,2]
[330195600,1719107443516,-360.32505526,0.00015897,2]
[330195601,1719107443525,-699.97,0.00016124,2]
[330195602,1719107443535,-499.99,0.00016232,2]
[330195603,1719107443544,-732.78,0.00016232,2]
[330195604,1719107443553,-2867.05615373,0.00016233,2]
[330195605,1719107443563,-587.0,0.00016802,2]
[330195606,1719107443572,-12762.78975329,0.00016969,2]
[330195607,1719107443581,-2867.05615373,0.00017011,2]
[330195608,1719107443591,-2867.05615373,0.00017789,2]
[330195609,1719107443601,-10667.38,0.00017871,2]
[330195610,1719107443610,-250.0,0.00017895,2]
[330195611,1719107443619,-278.95,0.00017999,2]
[330195612,1719107443628,-1462.28382296,0.00018,2]
[330195613,1719107443638,-1037.29,0.00018163,2]
[330195614,1719107443647,-327.84,0.00018223,2]
[330195615,1719107443656,-337.94,0.00018268,2]
[330195616,1719107443666,-1340.07749841,0.00018288,2]
[330195617,1719107443675,-500.0,0.00018289,2]
[330195618,1719107443685,-1500.0,0.00018368,5]
[330195619,1719107443694,-699.97,0.00018387,2]
[330195620,1719107443703,-250.0,0.00018401,2]
[330195621,1719107443712,-823.0,0.00018408,2]
[330195622,1719107443721,-1461.56,0.00018523,2]
[330195623,1719107443730,-2867.05615373,0.00018567,2]
[330195624,1719107443740,-156.76,0.0001857,2]
[330195625,1719107443750,-1000.0,0.00018587,2]
[330195626,1719107443760,-743.167951,0.0001863,2]
[330195627,1719107443769,-196.48,0.00018636,2]
[330195628,1719107443778,-156.33,0.00018752,2]
[330195629,1719107443787,-156.33,0.00018861,2]
[330195630,1719107443797,-156.33,0.00018969,2]
[330195631,1719107443806,-156.33,0.00019078,2]
[330195632,1719107443815,-250.0,0.00019178,2]
[330195633,1719107443824,-156.33,0.00019186,2]
[330195634,1719107443834,-156.33,0.00019295,2]
[330195635,1719107443844,-2867.05615373,0.00019344,2]
[330195636,1719107443854,-156.33,0.00019404,2]
[330195637,1719107443863,-743.167951,0.00019452,2]
[330195638,1719107443873,-156.33,0.00019512,2]
[330195639,1719107443882,-156.33,0.00019621,2]
[330195640,1719107443891,-156.33,0.00019729,2]
[330195641,1719107443900,-292.58425516,0.0002,2]
[330195642,1719107443910,-3758.50756771,0.0002,2]
[330195643,1719107443919,-6653.0,0.0002,2]
[330195644,1719107443929,-8276.09898017,0.0002,2]
[330195645,1719107443938,-6025.64152776,0.0002,2]
[330195646,1719107443948,-2867.05615373,0.00020122,2]
[330195647,1719107443957,-1152.0,0.00020167,2]
[330195648,1719107443967,-312.67,0.00020192,2]
[330195649,1719107443976,-423.67,0.00020192,2]
[330195650,1719107443985,-357.62,0.00020192,2]
[330195651,1719107443995,-152.07,0.00020192,2]
[330195652,1719107444004,-164.6,0.00020192,2]
[330195653,1719107444014,-150.9,0.00020192,2]
[330195654,1719107444024,-423.67,0.00020192,2]
[330195655,1719107444033,-150.0,0.00020192,2]
[330195656,1719107444042,-164.6,0.00020192,2]
[330195657,1719107444052,-423.67,0.00020192,2]
[330195658,1719107444061,-150.0,0.00020192,2]
[330195659,1719107444070,-164.6,0.00020192,2]
[330195660,1719107444079,-423.67,0.00020192,2]
[330195661,1719107444090,-150.0,0.00020192,2]
[330195662,1719107444101,-164.6,0.00020192,2]
[330195663,1719107444111,-423.67,0.00020192,2]
[330195664,1719107444120,-162.97,0.00020192,2]
[330195665,1719107444129,-847.84,0.00020192,2]
[330195666,1719107444139,-743.167951,0.00020274,2]
[330195667,1719107444148,-11646.0,0.000204,5]
[330195668,1719107444158,-3964.09852975,0.00020566,2]
[330195669,1719107444168,-262.8173111,0.0002058,2]
[330195670,1719107444178,-699.97,0.00020651,2]
[330195671,1719107444188,-2543.57652,0.0002079,2]
[330195672,1719107444199,-883.09874996,0.000208,2]
[330195673,1719107444208,-362.038722,0.000208,2]
[330195674,1719107444217,-1409.32804957,0.000208,3]
[330195675,1719107444228,-753.59338141,0.00020801,2]
[330195676,1719107444239,-2374.1689164,0.0002081,2]
[330195677,1719107444248,-603.25355516,0.00020812,2]
[330195678,1719107444257,-200.0,0.00020832,2]
[330195679,1719107444267,-297.32648978,0.00020889,2]
[330195680,1719107444277,-297.32648978,0.00020889,2]
[330195681,1719107444287,-810.7697,0.00020896,2]
[330195682,1719107444297,-166.76065759,0.00020896,2]
[330195683,1719107444307,-181.24765135,0.00020899,2]
[330195684,1719107444317,-293.3540723,0.00020899,2]
[330195685,1719107444328,-158.69568846,0.000209,2]
[330195686,1719107444337,-2867.05615373,0.000209,2]
[330195687,1719107444346,-178.68953995,0.000209,2]
[330195688,1719107444356,-5000.0,0.00020902,2]
[330195689,1719107444366,-1037.29,0.00020902,2]
[330195690,1719107444375,-1000.0,0.00020911,2]
[330195691,1719107444386,-454.98595763,0.00020996,2]
[330195692,1719107444396,-20949.95871865,0.00020996,2]
[330195693,1719107444407,-61323.01894489,0.00020997,2]
[330195694,1719107444416,-948.14471684,0.00020998,2]
[330195695,1719107444425,-1070.07487293,0.00020999,5]
[330195696,1719107444435,-1000.0,0.00020999,2]
[330195697,1719107444444,-2000.0,0.00020999,2]
[330195698,1719107444453,-200.0,0.00020999,2]
[330195699,1719107444462,-3596.416741,0.00020999,2]
[330195700,1719107444471,-151.52157189,0.00020999,2]
[330195701,1719107444482,-500.0,0.00020999,2]
[330195702,1719107444492,-500.0,0.00020999,2]
[330195703,1719107444502,-431.7471623,0.00020999,2]
[330195704,1719107444511,-348.27129329,0.00020999,2]
[330195705,1719107444521,-500.0,0.00020999,2]
[330195706,1719107444530,-500.0,0.00020999,2]
[330195707,1719107444539,-500.0,0.00020999,2]
[330195708,1719107444548,-500.0,0.00020999,2]
[330195709,1719107444557,-500.0,0.00020999,2]
[330195710,1719107444566,-500.0,0.00020999,2]
[330195711,1719107444576,-500.0,0.00020999,2]
[330195712,1719107444585,-500.0,0.00020999,2]
[330195713,1719107444594,-500.0,0.00020999,2]
[330195714,1719107444604,-500.0,0.00020999,2]
[330195715,1719107444614,-500.0,0.00020999,2]
[330195716,1719107444623,-500.0,0.00020999,2]
[330195717,1719107444632,-296.5150368,0.00020999,2]
[330195718,1719107444641,-628.50649677,0.00020999,2]
[330195719,1719107444650,-500.0,0.00020999,2]
[330195720,1719107444659,-500.0,0.00020999,2]
[330195721,1719107444669,-500.0,0.00020999,2]
[330195722,1719107444678,-500.0,0.00020999,2]
[330195723,1719107444687,-500.0,0.00020999,2]
[330195724,1719107444696,-220.61236997,0.00020999,2]
[330195725,1719107444705,-275.9887264,0.00020999,2]
[330195726,1719107444715,-451.64463823,0.00020999,2]
[330195727,1719107444724,-500.0,0.00020999,2]